bitfinex-derivatives/quotes_SOLF0:USTF0_20241218
["timestamp","ask_amount","ask_price","bid_price","bid_amount"]
[1734545309462,2.3087,216.6,216.56,2.3091]
[1734545309957,11.27469102,216.63,216.52,2.2582]
[1734545310165,21.06504148,216.62,216.51,2.3189]
[1734545310359,18.74504148,216.61,216.51,2.3189]
[1734545310555,2.3092,216.56,216.51,4.6285]
[1734545310765,11.27469102,216.6,216.51,4.6285]
[1734545310963,2.32,216.62,216.51,4.6285]
[1734545311553,21.06676569,216.62,216.51,4.6285]
[1734545311758,18.74676569,216.61,216.51,4.6285]
[1734545311959,2.3092,216.56,216.51,4.6285]
[1734545312454,12.37097172,216.62,216.45,10.05097172]
[1734545312656,10.05097172,216.59,216.46,2.32]
[1734545312854,18.74643122,216.58,216.46,2.32]
[1734545313055,2.3094,216.54,216.47,2.3101]
[1734545313266,2.32,216.55,216.47,2.3101]
[1734545313761,2.32,216.55,216.46,2.32]
[1734545314360,2.3097,216.52,216.48,2.31]
[1734545314760,2.3097,216.52,216.45,2.32]
[1734545315056,2.32,216.55,216.45,2.32]
[1734545315262,13.59544566,216.55,216.45,2.32]
[1734545315457,2.32,216.55,216.45,2.32]
[1734545315662,2.3099,216.5,216.45,2.32]
[1734545316160,2.31,216.48,216.44,2.3103]
[1734545316359,18.74710532,216.54,216.42,2.32]
[1734545316567,7.47195162,216.53,216.42,2.32]
[1734545316760,17.52292334,216.53,216.42,2.32]
[1734545316980,18.74710532,216.52,216.39,2.32]
[1734545317262,2.3105,216.44,216.39,2.3109]
[1734545317459,2.32,216.47,216.39,2.3109]
[1734545317865,2.3103,216.45,216.39,2.3109]
[1734545318064,2.32,216.47,216.37,2.3111]
[1734545318268,12.37097172,216.47,216.36,0.21393]
[1734545318464,18.72996477,216.46,216.36,0.21393]
[1734545318771,11.2650437,216.46,216.36,0.21393]
[1734545318967,2.3105,216.43,216.36,0.21393]
[1734545319160,2.32,216.42,216.36,0.21393]
[1734545320465,2.3111,216.38,216.36,0.21393]
[1734545321468,2.32,216.42,216.36,0.21393]
[1734545321664,2.3112,216.37,216.36,0.21393]
[1734545322070,2.3116,216.33,216.27,10.05097172]
[1734545322270,2.32,216.37,216.26,2.32]
[1734545322668,2.3119,216.3,216.26,2.3123]
[1734545322871,2.3119,216.3,216.24,10.05097172]
[1734545323064,2.32,216.31,216.21,10.05097172]
[1734545323270,2.32,216.3,216.19,2.32]
[1734545323466,2.32,216.29,216.19,2.32]
[1734545323665,2.3128,216.23,216.18,2.3457]
[1734545323868,2.32,216.26,216.17,14.63137172]
[1734545324075,2.32,216.26,216.15,2.32]
[1734545324076,2.32,216.25,216.15,2.32]
[1734545324373,2.32,216.24,216.15,2.32]
[1734545325171,2.32,216.24,216.15,4.6803]
[1734545325875,2.3129,216.21,216.16,2.3133]
[1734545326271,10.05097172,216.17,215.81,2.32]
[1734545326477,52.88,216.21,215.93,7.77720916]
[1734545326478,10.05097172,216.08,215.93,7.77720916]
[1734545326776,2.3149,216.03,215.94,2.3012]
[1734545326972,2.32,216.07,215.94,4.6217]
[1734545327270,10.05097172,216.05,215.94,2.3205]
[1734545327478,10.05097172,216.02,215.93,2.3603]
[1734545327774,2.3156,215.96,215.89,2.32]
[1734545327967,18.50494749,216.02,215.89,2.32]
[1734545328166,18.50494749,216.02,215.81,16.18494749]
[1734545328471,2.3156,215.96,215.82,2.32]
[1734545328670,2.32,215.97,215.85,5.49320552]
[1734545328867,2.32,216.0,215.85,21.67815301]
[1734545329571,2.3153,215.99,215.91,2.316]
[1734545329774,2.32,216.02,215.91,2.32]
[1734545330172,16.18494749,216.06,215.91,2.32]
[1734545330377,16.18494749,216.12,215.91,2.32]
[1734545330570,5.59551849,216.07,215.92,7.1006]
[1734545330776,5.59551849,216.07,215.96,2.3155]
[1734545330974,5.59551849,216.07,215.97,2.32]
[1734545331175,2.32,216.11,215.97,2.32]
[1734545331575,2.32,216.13,215.97,2.32]
[1734545332277,2.32,216.13,215.97,18.50494749]
[1734545332476,2.32,216.17,215.97,18.50494749]
[1734545332673,2.3136,216.15,215.97,18.50494749]
[1734545332978,2.32,216.17,216.01,16.18494749]
[1734545333178,2.32,216.17,216.1,2.314]
[1734545333369,2.32,216.2,216.09,2.32]
[1734545334575,2.3131,216.19,216.1,2.314]
[1734545334978,5.58896839,216.18,216.1,2.314]
[1734545335178,5.58896839,216.18,216.09,2.32]
[1734545335675,2.32,216.2,216.09,2.32]
[1734545336172,2.32,216.2,216.13,2.3137]
[1734545336377,2.32,216.2,216.1,4.6927]
[1734545336580,16.18494749,216.24,216.1,7.0197]
[1734545336881,2.3133,216.17,216.1,9.3397]
[1734545337173,5.55674891,216.21,216.1,9.3397]
[1734545337580,2.32,216.2,216.1,9.3397]
[1734545337980,2.32,216.2,216.12,2.3138]
[1734545338177,2.32,216.2,216.1,9.3397]
[1734545338872,2.32,216.23,216.1,9.3397]
[1734545339283,4.6327,216.23,216.13,2.3136]
[1734545339480,2.32,216.23,216.1,9.3397]
[1734545339879,2.3129,216.21,216.1,9.3397]
[1734545340174,2.3129,216.21,216.14,2.3136]
[1734545341179,5.43792223,216.23,216.14,2.3136]
[1734545341981,5.43792223,216.23,216.1,9.3397]
[1734545342182,5.43792223,216.23,216.16,2.3134]
[1734545342579,5.43792223,216.23,216.1,7.0197]
[1734545342580,2.3131,216.19,216.1,7.0197]
[1734545342779,5.43792223,216.23,216.1,7.0197]
[1734545343478,2.3131,216.19,216.13,2.3137]
[1734545343682,5.43792223,216.23,216.1,7.0197]
[1734545344077,7.75072223,216.23,216.1,7.0197]
[1734545344280,2.32,216.25,216.1,7.0197]
[1734545344784,2.3127,216.23,216.16,2.3134]
[1734545344981,16.18494749,216.28,216.15,2.32]
[1734545345186,2.32,216.27,216.16,2.32]
[1734545345383,4.6322,216.27,216.16,2.32]
[1734545345585,10.18821853,216.27,216.16,2.32]
[1734545345984,2.3121,216.29,216.16,2.32]
[1734545346285,2.3121,216.29,216.17,16.18494749]
[1734545346286,2.32,216.28,216.17,16.18494749]
[1734545347584,52.92,216.34,216.17,16.18494749]
[1734545347585,2.3119,216.3,216.23,2.3126]
[1734545347786,2.3119,216.3,216.17,16.18494749]
[1734545347787,2.32,216.32,216.21,2.32]
[1734545347986,5.61307649,216.31,216.22,4.5917]
[1734545348181,2.3121,216.28,216.22,4.5917]
[1734545348586,2.312,216.3,216.23,2.3126]
[1734545348783,5.61307649,216.31,216.23,2.3126]
[1734545348988,5.61307649,216.31,216.18,2.4]
[1734545349181,2.3126,216.24,216.18,4.7131]
[1734545349380,2.4,216.26,216.18,2.4]
[1734545349582,2.4,216.26,216.17,2.3133]
[1734545349583,2.3127,216.23,216.17,2.3133]
[1734545349784,2.4,216.26,216.14,2.4]
[1734545350181,4.7123,216.26,216.14,2.4]
[1734545350386,2.4,216.26,216.14,2.4]
[1734545350682,2.3126,216.24,216.17,2.3132]
[1734545350887,2.4,216.26,216.13,18.58494749]
[1734545351492,2.3128,216.23,216.17,2.3132]
[1734545352184,2.3125,216.25,216.13,18.58494749]
[1734545352390,2.4,216.26,216.13,18.58494749]
[1734545353388,4.7124,216.26,216.2,2.313]
[1734545353581,2.4,216.26,216.13,18.58494749]
[1734545354187,5.61307649,216.31,216.17,16.18494749]
[1734545354388,8.01307649,216.31,216.18,2.4]
[1734545354589,2.3121,216.29,216.24,2.3125]
[1734545354788,5.61307649,216.31,216.18,2.4]
[1734545354987,2.4,216.32,216.18,2.4]
[1734545355183,0.1399,216.39,216.25,2.3124]
[1734545355184,2.4,216.33,216.25,2.3124]
[1734545355390,2.4,216.33,216.18,2.4]
[1734545355781,2.3118,216.31,216.25,2.3123]
[1734545356182,5.57634879,216.34,216.23,2.4]
[1734545356393,7.88794879,216.34,216.24,6.947]
[1734545357188,2.3116,216.33,216.27,2.3122]
[1734545357499,5.57634879,216.34,216.24,6.947]
[1734545358698,2.3121,216.29,216.24,9.2595]
[1734545359493,2.3117,216.32,216.27,2.3122]
[1734545359896,2.4,216.33,216.24,6.947]
[1734545360690,2.4,216.33,216.18,5.60837499]
[1734545360894,2.3126,216.24,216.2,2.3129]
[1734545361097,2.3126,216.24,216.19,2.4]
[1734545361699,2.3126,216.24,216.18,4.5032]
[1734545361899,11.16260028,216.33,216.22,2.3127]
[1734545362100,2.4,216.3,216.18,4.5032]
[1734545363093,2.3118,216.32,216.24,2.3125]
[1734545363298,5.57634879,216.34,216.23,2.4]
[1734545363498,5.57634879,216.34,216.24,2.3995]
[1734545363700,2.3117,216.32,216.27,2.3121]
[1734545364198,2.3117,216.32,216.28,2.3121]
[1734545364590,5.57634879,216.34,216.24,2.3995]
[1734545364796,5.57634879,216.34,216.24,4.712]
[1734545364996,5.57634879,216.34,216.24,2.3995]
[1734545365402,5.57634879,216.34,216.29,2.312]
[1734545365602,2.3116,216.33,216.24,2.3995]
[1734545365794,2.4,216.36,216.3,2.3119]
[1734545366498,8.07864366,216.36,216.3,2.3119]
[1734545366695,5.67864366,216.36,216.3,2.3119]
[1734545367506,2.3115,216.34,216.3,2.3119]
[1734545368205,2.3115,216.34,216.25,2.4]
[1734545368401,2.3115,216.34,216.29,2.312]
[1734545368801,2.3115,216.34,216.25,2.4]
[1734545369205,2.3115,216.34,216.27,2.3121]
[1734545369399,193.62996878,216.36,216.25,2.4]
[1734545369605,191.31856878,216.36,216.25,2.4]
[1734545369999,193.62986878,216.36,216.27,10.07520445]
[1734545370407,191.31856878,216.36,216.32,2.3117]
[1734545370606,191.31856878,216.36,216.3,12.47520445]
[1734545370807,187.68726878,216.36,216.35,2.3114]
[1734545371003,147.21666878,216.36,216.35,4.7114]
[1734545371205,55.39585464,216.36,216.35,4.7114]
[1734545371404,252.06275811,216.44,216.41,2.3107]
[1734545371600,252.06275811,216.44,216.38,10.07520445]
[1734545372404,2.31,216.48,216.42,2.3106]
[1734545372598,7.74924907,216.48,216.42,2.3106]
[1734545373608,2.3099,216.49,216.43,2.3105]
[1734545373803,4.465,216.51,216.41,10.07520445]
[1734545374109,2.2049,216.51,216.41,10.07520445]
[1734545374607,2.2049,216.51,216.4,2.4]
[1734545375010,2.3098,216.5,216.44,2.3103]
[1734545375410,2.2049,216.51,216.4,2.4]
[1734545375708,4.5146,216.51,216.45,2.3102]
[1734545376208,2.3102,216.47,216.41,2.3107]
[1734545376401,2.2049,216.51,216.4,2.4]
[1734545376905,2.31,216.48,216.42,2.3105]
[1734545377106,2.2049,216.51,216.4,2.4]
[1734545377504,2.3098,216.5,216.43,2.3105]
[1734545377709,2.2049,216.51,216.4,2.4]
[1734545380906,2.2601,216.54,216.4,2.4]
[1734545381103,2.2601,216.54,216.42,16.10069758]
[1734545382215,2.3094,216.53,216.48,2.3099]
[1734545384112,2.2601,216.54,216.42,16.10069758]
[1734545384313,2.2601,216.54,216.43,2.34]
[1734545384823,4.5695,216.54,216.48,2.31]
[1734545385015,4.5695,216.54,216.43,2.34]
[1734545385210,2.2601,216.54,216.43,2.34]
[1734545385715,2.3094,216.53,216.48,2.3099]
[1734545385916,0.1511,216.56,216.49,2.34]
[1734545386117,2.3611,216.57,216.49,2.34]
[1734545387520,4.6701,216.57,216.49,2.34]
[1734545387909,2.3611,216.57,216.53,2.3094]
[1734545388114,2.3089,216.58,216.53,2.3094]
[1734545388316,2.3089,216.58,216.49,2.34]
[1734545388619,2.3088,216.59,216.54,2.3093]
[1734545388819,8.07910378,216.61,216.49,2.34]
[1734545389021,2.4034,216.61,216.49,2.34]
[1734545389622,2.3088,216.6,216.52,2.3095]
[1734545389820,2.4034,216.61,216.49,2.34]
[1734545390215,2.3088,216.59,216.52,2.3095]
[1734545390420,2.3088,216.59,216.49,2.34]
[1734545390621,2.4034,216.61,216.49,2.34]
[1734545390922,2.4034,216.61,216.49,18.44069758]
[1734545391620,2.4034,216.61,216.58,2.3088]
[1734545391820,2.4034,216.61,216.49,18.44069758]
[1734545391821,2.2865,216.65,216.57,2.34]
[1734545392220,2.218,216.68,216.57,2.34]
[1734545392620,2.308,216.67,216.62,2.3084]
[1734545392821,7.6857292,216.68,216.57,2.34]
[1734545393828,2.3081,216.66,216.62,2.3085]
[1734545394122,7.6857292,216.68,216.62,2.3085]
[1734545394522,2.308,216.67,216.62,2.3085]
[1734545395024,7.6857292,216.68,216.6,2.3087]
[1734545395424,7.6857292,216.68,216.61,2.3086]
[1734545396228,7.6857292,216.68,216.57,12.38765549]
[1734545396430,7.6857292,216.68,216.54,10.04765549]
[1734545396727,7.6857292,216.68,216.55,2.34]
[1734545396929,2.3084,216.63,216.58,2.3088]
[1734545397125,7.6857292,216.68,216.54,10.04765549]
[1734545397326,7.6857292,216.68,216.57,2.34]
[1734545398022,2.3082,216.65,216.57,2.34]
[1734545398230,2.34,216.65,216.57,2.34]
[1734545398530,2.3087,216.61,216.52,5.62014943]
[1734545398828,2.3087,216.61,216.55,2.3091]
[1734545399229,2.3087,216.61,216.53,2.34]
[1734545400524,2.34,216.65,216.51,10.04765549]
[1734545400722,2.34,216.65,216.52,2.34]
[1734545400926,2.34,216.65,216.56,2.3091]
[1734545401121,7.6857292,216.68,216.57,2.34]
[1734545402529,2.3083,216.64,216.57,2.34]
[1734545403230,2.3083,216.64,216.59,2.3087]
[1734545403531,2.3083,216.64,216.57,2.34]
[1734545404428,7.6857292,216.68,216.51,5.60925094]
[1734545404630,10.04765549,216.66,216.53,2.34]
[1734545405223,2.3089,216.59,216.54,2.3093]
[1734545405431,2.34,216.63,216.53,2.34]
[1734545405632,2.2666,216.62,216.53,2.34]
[1734545406130,2.3661,216.61,216.53,2.34]
[1734545406532,2.309,216.58,216.54,2.3093]
[1734545407229,4.6748,216.61,216.53,2.34]
[1734545407428,4.6748,216.61,216.53,12.38765549]
[1734545408632,4.6748,216.61,216.57,2.309]
[1734545408934,2.3661,216.61,216.53,12.38765549]
[1734545409126,2.3661,216.61,216.53,10.04765549]
[1734545409330,2.3661,216.61,216.54,2.3]
[1734545409531,2.3661,216.61,216.56,2.3091]
[1734545409830,191.10298686,216.62,216.54,2.3]
[1734545410222,191.10298686,216.62,216.58,2.3088]
[1734545410621,191.10298686,216.62,216.56,12.34765549]
[1734545410823,191.10298686,216.62,216.61,2.3086]
[1734545411029,191.10298686,216.62,216.61,4.6086]
[1734545411228,191.10298686,216.62,216.61,2.3]
[1734545411432,191.10298686,216.64,216.61,2.3]
[1734545411629,191.10298686,216.64,216.62,10.04765549]
[1734545411828,191.10298686,216.64,216.63,2.3084]
[1734545412431,191.10298686,216.64,216.62,10.04765549]
[1734545412630,255.09142504,216.66,216.62,10.04765549]
[1734545412833,255.09142504,216.66,216.65,10.04765549]
[1734545413438,255.09142504,216.66,216.65,12.35585549]
[1734545414527,170.5145109,216.66,216.65,12.35585549]
[1734545415132,191.10298686,216.7,216.69,2.3077]
[1734545416337,191.10298686,216.7,216.68,2.3]
[1734545417032,191.10298686,216.7,216.69,2.3077]
[1734545418137,4.5866,216.74,216.68,2.3]
[1734545418331,252.06275811,216.76,216.68,2.3]
[1734545418838,252.06275811,216.76,216.72,2.3074]
[1734545419234,2.2763,216.77,216.72,2.3074]
[1734545419434,2.2763,216.77,216.73,2.3073]
[1734545419636,2.2763,216.77,216.68,2.3]
[1734545419834,2.3071,216.76,216.68,2.3]
[1734545420137,2.2763,216.77,216.73,2.3073]
[1734545420339,4.6034,216.79,216.69,10.04765549]
[1734545420533,4.6034,216.79,216.7,2.3]
[1734545421336,2.2967,216.79,216.7,2.3]
[1734545421638,2.2967,216.79,216.75,2.3071]
[1734545421842,2.2967,216.79,216.7,2.3]
[1734545422044,4.6035,216.79,216.74,2.3072]
[1734545422336,2.2967,216.79,216.7,2.3]
[1734545422741,312.6254002,216.8,216.75,2.3071]
[1734545423041,312.6254002,216.8,216.75,2.3]
[1734545423236,312.6254002,216.8,216.79,2.3067]
[1734545424439,4.5655,216.88,216.76,10.04765549]
[1734545424645,14.61315549,216.88,216.75,2.3]
[1734545424944,2.3065,216.81,216.75,4.607]
[1734545425446,2.3065,216.81,216.75,2.3]
[1734545425645,14.61315549,216.88,216.75,2.3]
[1734545425846,11.19011323,216.87,216.75,2.3]
[1734545426340,2.3065,216.81,216.75,2.3]
[1734545426852,2.3066,216.8,216.75,2.3]
[1734545427342,2.3,216.86,216.73,2.3]
[1734545427343,10.04765549,216.85,216.73,2.3]
[1734545427546,10.04765549,216.82,216.67,10.04765549]
[1734545427742,10.04765549,216.82,216.68,2.3]
[1734545427743,18.60049224,216.81,216.68,2.3]
[1734545428048,11.18831551,216.81,216.7,10.04765549]
[1734545428249,10.04765549,216.85,216.7,10.04765549]
[1734545428447,2.3069,216.77,216.72,2.3074]
[1734545428642,2.3069,216.77,216.73,2.3]
[1734545429350,2.3071,216.75,216.73,2.3]
[1734545430245,2.307,216.76,216.73,2.3]
[1734545430440,2.1845,216.78,216.7,2.3]
[1734545430844,13.38147554,216.78,216.7,2.3]
[1734545431047,2.3061,216.77,216.7,2.3]
[1734545431242,2.3061,216.77,216.7,12.34765549]
[1734545432751,2.1845,216.78,216.73,10.04765549]
[1734545432951,2.3064,216.82,216.77,2.3068]
[1734545433750,2.3065,216.81,216.77,2.3068]
[1734545434159,23.32069005,216.84,216.75,2.3]
[1734545434449,7.42141552,216.83,216.75,2.3]
[1734545434853,2.3065,216.81,216.75,2.3]
[1734545435047,4.6971,216.84,216.75,2.3]
[1734545435250,15.90025426,216.84,216.75,2.3]
[1734545435447,2.3068,216.79,216.75,2.3]
[1734545436057,15.90166798,216.84,216.75,2.3]
[1734545436252,2.3067,216.79,216.75,2.3]
[1734545436853,15.90166798,216.84,216.7,10.04765549]
[1734545436854,2.3,216.81,216.7,12.34765549]
[1734545437059,2.3,216.81,216.7,2.3]
[1734545437261,13.50456798,216.81,216.7,2.3]
[1734545437462,2.3071,216.75,216.7,4.6076]
[1734545438161,2.3071,216.75,216.71,2.3075]
[1734545438561,2.307,216.76,216.71,2.3075]
[1734545438956,2.3,216.8,216.71,2.3075]
[1734545439155,2.3071,216.75,216.71,2.3075]
[1734545439357,2.3,216.8,216.7,2.3]
[1734545439563,2.3,216.8,216.73,2.3073]
[1734545440261,2.3068,216.78,216.73,2.3073]
[1734545441362,2.3,216.8,216.72,2.3074]
[1734545441564,2.3,216.8,216.7,2.3]
[1734545441754,7.74249146,216.8,216.7,2.3]
[1734545442459,2.307,216.76,216.72,2.3074]
[1734545443556,2.3,216.8,216.67,10.04765549]
[1734545443760,4.5808,216.75,216.64,10.04765549]
[1734545443958,2.4003,216.74,216.63,2.3]
[1734545444464,2.4003,216.74,216.65,2.3081]
[1734545444663,2.4003,216.74,216.63,2.3]
[1734545444861,2.3073,216.73,216.68,2.3078]
[1734545445061,2.4003,216.74,216.64,10.04765549]
[1734545445965,2.3073,216.73,216.68,2.3078]
[1734545446658,2.4003,216.74,216.63,2.3]
[1734545446857,2.4003,216.74,216.61,10.04765549]
[1734545447262,2.3079,216.68,216.63,2.3084]
[1734545447761,2.3082,216.65,216.6,2.3087]
[1734545448161,20.96611673,216.72,216.59,2.3]
[1734545448466,2.2348,216.64,216.6,2.3087]
[1734545449162,2.2348,216.64,216.59,2.3]
[1734545449365,2.197,216.63,216.59,2.3]
[1734545450065,2.197,216.63,216.55,10.04765549]
[1734545450260,2.197,216.63,216.52,38.21048316]
[1734545450465,2.197,216.63,216.53,2.3]
[1734545450659,2.3086,216.61,216.55,2.3091]
[1734545450863,2.3086,216.61,216.54,2.3]
[1734545451165,2.3087,216.6,216.54,4.6093]
[1734545452267,4.5249,216.63,216.52,2.3]
[1734545452467,23.20852748,216.63,216.52,2.3]
[1734545452668,11.23658801,216.62,216.52,2.3]
[1734545452969,4.5249,216.63,216.54,2.3093]
[1734545453166,15.76379376,216.63,216.54,2.3093]
[1734545453369,4.5249,216.63,216.54,2.3093]
[1734545453864,15.76389568,216.63,216.54,2.3093]
[1734545454071,4.5249,216.63,216.54,2.3093]
[1734545454572,4.5249,216.63,216.52,12.34765549]
[1734545454871,4.5249,216.63,216.55,10.04765549]
[1734545455869,2.197,216.63,216.6,2.3086]
[1734545456069,2.3081,216.66,216.6,2.3086]
[1734545457066,9.1779,216.69,216.58,2.3]
[1734545457268,6.8701,216.69,216.58,2.3]
[1734545457467,6.8701,216.69,216.63,2.3083]
[1734545458369,9.1779,216.69,216.63,2.3083]
[1734545458569,6.8701,216.69,216.63,2.3083]
[1734545458967,2.3081,216.66,216.6,2.3086]
[1734545459174,6.8701,216.69,216.58,2.3]
[1734545459471,2.3084,216.64,216.58,4.6088]
[1734545459665,2.3084,216.64,216.58,2.3]
[1734545460372,2.3084,216.63,216.58,2.3]
[1734545460574,12.34765549,216.67,216.55,2.3]
[1734545460965,12.34765549,216.67,216.57,2.309]
[1734545461267,12.34765549,216.67,216.55,2.3]
[1734545461468,2.3086,216.61,216.56,2.3091]
[1734545462168,12.34765549,216.67,216.55,2.3]
[1734545462169,2.3087,216.6,216.55,4.6092]
[1734545464070,12.34765549,216.61,216.5,2.3]
[1734545464270,6.8667,216.59,216.48,2.3]
[1734545464975,2.3095,216.53,216.48,4.6099]
[1734545465168,10.04765549,216.58,216.44,5.64602538]
[1734545465371,10.04765549,216.55,216.4,91.02713809]
[1734545465568,2.31,216.48,216.43,2.3105]
[1734545466374,2.3099,216.5,216.44,2.3104]
[1734545467470,2.3096,216.52,216.43,2.3]
[1734545467669,2.3,216.55,216.43,12.34765549]
[1734545468268,2.3096,216.52,216.45,2.3102]
[1734545468475,12.34765549,216.55,216.43,2.3]
[1734545468672,12.34765549,216.55,216.4,38.22713809]
[1734545468884,12.34765549,216.55,216.41,2.3]
[1734545469079,12.34765549,216.55,216.4,28.1794826]
[1734545469281,0.7234332,216.54,216.42,2.3106]
[1734545469675,2.3101,216.47,216.42,2.3106]
[1734545470183,10.04765549,216.52,216.4,30.4794826]
[1734545470383,2.3098,216.51,216.4,40.52713809]
[1734545470587,2.3,216.53,216.4,40.52713809]
[1734545470784,2.3,216.53,216.45,2.3103]
[1734545471586,2.3098,216.5,216.45,2.3103]
[1734545473278,2.3,216.53,216.45,2.3103]
[1734545473481,2.3099,216.49,216.45,2.3103]
[1734545474077,2.3101,216.47,216.43,2.3104]
[1734545474286,2.3101,216.47,216.4,30.4794826]
[1734545474784,6.8667,216.59,216.44,10.04765549]
[1734545474984,6.8667,216.59,216.45,2.3]
[1734545475385,2.3,216.58,216.45,2.3]
[1734545475687,4.6086,216.59,216.5,10.04765549]
[1734545475986,2.3,216.63,216.51,2.3]
[1734545476488,4.6084,216.63,216.56,2.309]
[1734545476979,4.6084,216.63,216.54,2.3]
[1734545477185,191.10298686,216.74,216.6,10.04765549]
[1734545477385,191.10298686,216.74,216.66,10.04765549]
[1734545477579,7.4012915,216.73,216.67,2.3]
[1734545477786,4.5608,216.79,216.72,2.3074]
[1734545477988,4.5608,216.79,216.73,2.3]
[1734545479388,4.5608,216.79,216.71,2.3]
[1734545479592,4.5608,216.79,216.63,10.04765549]
[1734545479793,10.04765549,216.75,216.64,2.3]
[1734545479995,16.07122298,216.77,216.61,5.47343411]
[1734545480183,19.29713727,216.76,216.62,2.3]
[1734545480389,7.40219862,216.75,216.62,2.3]
[1734545480987,0.72269907,216.74,216.62,2.3]
[1734545481195,2.3,216.73,216.59,2.3087]
[1734545481493,2.3079,216.68,216.6,10.09365879]
[1734545481884,36.94573457,216.73,216.53,16.07122298]
[1734545482084,2.2469,216.67,216.54,2.3]
[1734545482389,4.5876,216.66,216.55,2.3]
[1734545483293,2.3083,216.64,216.57,2.3089]
[1734545483493,15.77704357,216.66,216.55,2.3]
[1734545483687,4.5876,216.66,216.55,2.3]
[1734545484289,15.77754358,216.66,216.55,2.3]
[1734545484485,2.3084,216.64,216.55,2.3]
[1734545485291,4.5876,216.66,216.55,2.3]
[1734545485292,4.5876,216.66,216.57,2.309]
[1734545486390,2.3082,216.65,216.57,2.309]
[1734545487191,4.5876,216.66,216.55,2.3]
[1734545487395,15.79038169,216.66,216.49,16.07122298]
[1734545487595,4.5876,216.66,216.5,2.3]
[1734545487995,2.3087,216.6,216.53,2.3093]
[1734545488198,2.3087,216.6,216.5,2.3]
[1734545488802,2.3088,216.59,216.51,2.3096]
[1734545489099,2.3,216.63,216.51,2.3096]
[1734545489100,2.3,216.63,216.51,2.3]
[1734545489300,2.3094,216.54,216.49,2.3]
[1734545489599,9.1118,216.66,216.5,2.3]
[1734545490400,2.3084,216.63,216.56,2.3091]
[1734545490700,9.1118,216.66,216.56,2.3]
[1734545491102,2.3084,216.63,216.56,2.3]
[1734545491796,2.3084,216.63,216.56,4.6091]
[1734545492897,2.3085,216.62,216.56,4.6091]
[1734545493494,9.1118,216.66,216.56,4.6091]
[1734545493695,2.3084,216.64,216.57,2.309]
[1734545494498,4.6122,216.66,216.56,2.3]
[1734545494698,2.3,216.71,216.56,2.3]
[1734545494903,25.66394353,216.72,216.56,2.3]
[1734545495101,11.2250389,216.71,216.63,2.3083]
[1734545495402,7.0016,216.72,216.63,4.6083]
[1734545495601,2.3078,216.69,216.63,4.6083]
[1734545495799,18.22498571,216.72,216.63,2.3]
[1734545496094,7.0016,216.72,216.63,2.3]
[1734545496299,4.6388,216.72,216.63,2.3]
[1734545496899,4.6388,216.72,216.67,2.3079]
[1734545497898,6.9462,216.72,216.66,2.3081]
[1734545498594,4.6388,216.72,216.63,2.3]
[1734545498798,4.6388,216.72,216.67,2.3079]
[1734545499500,4.6388,216.72,216.68,2.3078]
[1734545499701,4.6388,216.72,216.63,2.3]
[1734545499902,5.42325695,216.76,216.63,2.3]
[1734545500295,191.10298686,216.87,216.63,2.3]
[1734545500597,195.71638686,216.87,216.69,16.07122298]
[1734545500800,2.306,216.86,216.78,2.3067]
[1734545500997,4.6134,216.87,216.79,2.3]